bitfinex/quotes_SOLUSD_20250721
["timestamp","ask_amount","ask_price","bid_price","bid_amount"]
[1753059460874,4.24644413,179.98,179.97,39.88]
[1753059461700,4.24644413,179.98,179.94,0.5557408]
[1753059461908,0.68,179.97,179.95,39.88]
[1753059463021,0.68,179.96,179.95,39.88]
[1753059463303,4.18644413,179.96,179.95,39.88]
[1753059463684,4.18644413,179.96,179.95,67.45389354]
[1753059465400,0.74,179.98,179.95,67.45389354]
[1753059465575,3.50644413,179.97,179.95,67.45389354]
[1753059466004,4.18644413,179.97,179.95,67.45389354]
[1753059466310,3.56644413,179.98,179.95,73.01093678]
[1753059466599,4.24644413,179.98,179.95,73.01093678]
[1753059467780,0.68,179.97,179.95,67.45389354]
[1753059467983,3.56644413,179.98,179.95,67.45389354]
[1753059468398,4.24644413,179.98,179.95,67.45389354]
[1753059468699,0.68,179.97,179.95,67.45389354]
[1753059469115,4.18644413,179.97,179.95,67.45389354]
[1753059469290,4.18644413,179.96,179.95,67.45389354]
[1753059469877,0.68,179.96,179.95,67.45389354]
[1753059470081,3.50644413,179.97,179.95,67.45389354]
[1753059470302,4.18644413,179.97,179.95,67.45389354]
[1753059472905,3.50644413,179.97,179.95,67.45389354]
[1753059473313,4.18644413,179.97,179.95,67.45389354]
[1753059473496,3.50644413,179.96,179.95,67.45389354]
[1753059473697,4.18644413,179.96,179.95,67.45389354]
[1753059476326,0.06,179.98,179.95,27.57389354]
[1753059476636,3.50644413,179.96,179.95,67.43389354]
[1753059476809,4.18644413,179.96,179.95,67.43389354]
[1753059477008,0.74,179.98,179.95,67.43389354]
[1753059477322,4.18644413,179.97,179.95,67.43389354]
[1753059478122,3.50644413,179.97,179.95,67.43389354]
[1753059478293,4.18644413,179.96,179.95,67.43389354]
[1753059478817,3.50644413,179.97,179.95,67.43389354]
[1753059479026,0.68,179.97,179.95,67.43389354]
[1753059479199,3.50644413,179.97,179.95,67.43389354]
[1753059481829,4.18644413,179.97,179.95,67.43389354]
[1753059483125,3.50644413,179.97,179.95,67.43389354]
[1753059483335,4.18644413,179.96,179.95,67.43389354]
[1753059484217,0.06,179.98,179.95,67.43389354]
[1753059484418,3.56644413,179.98,179.95,68.09389354]
[1753059484637,3.50644413,179.97,179.95,67.43389354]
[1753059485232,4.18644413,179.97,179.95,67.43389354]
[1753059485832,3.50644413,179.97,179.95,67.43389354]
[1753059486135,0.06,179.98,179.96,1.21567903]
[1753059486348,3.56644413,179.98,179.97,39.86]
[1753059487148,0.06,179.98,179.97,39.86]
[1753059487333,0.06,179.98,179.97,67.43389354]
[1753059489550,0.06,179.98,179.97,67.9895417]
[1753059490050,3.56644413,179.98,179.97,67.9895417]
[1753059491052,0.06,179.98,179.97,67.9895417]
[1753059491763,0.06,179.98,179.97,74.20602333]
[1753059492951,0.06,179.98,179.97,68.6495417]
[1753059495249,0.74,179.98,179.97,28.1295417]
[1753059495432,0.74,179.98,179.97,67.41389354]
[1753059495637,4.24644413,179.98,179.97,67.41389354]
[1753059496955,3.56644413,179.98,179.97,67.41389354]
[1753059497129,4.24644413,179.98,179.97,67.41389354]
[1753059497447,0.74,179.98,179.97,67.41389354]
[1753059497647,4.24644413,179.98,179.97,67.41389354]
[1753059498234,3.56644413,179.98,179.97,67.41389354]
[1753059498445,0.06,179.98,179.97,93.92150327]
[1753059498836,0.06,179.98,179.97,127.57530327]
[1753059500563,0.06,180.02,180.0,27.41389354]
[1753059500733,0.06,180.02,180.01,40.37552469]
[1753059501958,0.74,180.02,180.01,0.55552469]
[1753059502139,0.74,180.02,180.01,39.82]
[1753059502140,4.24644413,180.02,180.01,39.82]
[1753059502549,3.56644413,180.02,180.01,39.82]
[1753059502854,4.24644413,180.02,180.01,39.82]
[1753059503233,0.06,180.02,180.01,43.98644413]
[1753059503468,0.06,180.02,180.01,66.32637503]
[1753059503961,0.06,180.02,180.01,62.8199309]
[1753059504654,0.06,180.02,180.01,66.32637503]
[1753059504955,0.06,180.02,180.01,214.32637503]
[1753059505627,0.06,180.02,180.01,210.8199309]
[1753059505831,0.06,180.02,180.01,214.32637503]
[1753059508662,0.06,180.02,180.01,210.8199309]
[1753059509079,0.06,180.02,180.01,165.44468397]
[1753059509368,3.56644413,180.02,180.01,187.8]
[1753059509687,0.06,180.02,180.01,187.8]
[1753059509875,0.06,180.02,180.01,210.7999309]
[1753059510967,3.50644413,180.04,180.03,27.35389354]
[1753059511159,4.16644413,180.04,180.03,67.15389354]
[1753059511939,0.72,180.06,180.03,67.15389354]
[1753059512451,4.22644413,180.06,180.03,67.15389354]
[1753059512654,3.56644413,180.06,180.03,67.87389354]
[1753059513070,0.06,180.06,180.03,67.87389354]
[1753059513547,0.06,180.06,180.03,67.15389354]
[1753059513753,0.72,180.06,180.03,67.15389354]
[1753059514341,4.22644413,180.06,180.03,67.15389354]
[1753059514946,4.16644413,180.05,180.03,67.15389354]
[1753059515145,3.56644413,180.06,180.03,67.15389354]
[1753059515540,4.22644413,180.06,180.03,67.15389354]
[1753059516267,0.66,180.05,180.03,67.15389354]
[1753059516472,3.50644413,180.04,180.03,67.15389354]
[1753059516965,4.16644413,180.05,180.03,67.15389354]
[1753059517862,4.16644413,180.04,180.03,67.15389354]
[1753059518850,0.66,180.04,180.03,27.35389354]
[1753059519059,4.16644413,180.04,180.03,67.13389354]
[1753059519863,4.16644413,180.04,180.03,27.35389354]
[1753059521067,9.72084377,180.04,180.01,67.13389354]
[1753059521263,3.50644413,180.02,180.01,27.35389354]
[1753059521467,7.67288826,180.02,180.01,27.35389354]
[1753059521651,7.67288826,180.02,179.98,39.78]
[1753059521980,7.67288826,180.02,179.9,0.03]
[1753059521981,3.50644413,179.99,179.9,0.03]
[1753059522146,3.50644413,180.0,179.91,39.78]
[1753059522346,3.50644413,179.92,179.91,39.78]
[1753059522546,4.16644413,179.92,179.91,39.78]
[1753059525358,0.66,179.95,179.91,39.78]
[1753059525571,0.66,179.94,179.91,39.78]
[1753059525886,3.50644413,179.94,179.92,0.72]
[1753059526181,3.50644413,179.94,179.93,39.78]
[1753059528962,4.16644413,179.94,179.93,39.78]
[1753059529169,4.16644413,179.94,179.92,0.5]
[1753059529386,4.16644413,179.93,179.91,39.78]
[1753059529591,4.16644413,179.92,179.91,39.78]
[1753059529792,3.50644413,179.92,179.91,39.78]
[1753059532258,4.16644413,179.92,179.91,39.78]
[1753059533981,4.16644413,179.92,179.9,0.03]
[1753059534165,5.55802578,179.92,179.91,27.35389354]
[1753059534593,13.89301283,179.95,179.91,27.35389354]
[1753059534889,0.66,179.92,179.91,27.35389354]
[1753059535589,4.16644413,179.92,179.91,27.35389354]
[1753059535988,7.67288826,179.92,179.91,27.35389354]
[1753059536501,13.23091404,179.92,179.91,27.35389354]
[1753059537580,13.23091404,179.92,179.9,0.03]
[1753059537787,7.01288826,179.91,179.9,0.03]
[1753059538088,16.78468397,179.9,179.87,0.03]
[1753059538262,3.50644413,179.88,179.86,0.03]
[1753059538470,9.06601493,179.87,179.86,0.03]
[1753059538669,9.72601493,179.87,179.86,0.03]
[1753059539475,4.16644413,179.87,179.86,0.03]
[1753059540473,9.72601493,179.87,179.86,0.03]
[1753059540675,9.72601493,179.87,179.83,0.2]
[1753059540888,29.50644413,179.91,179.83,0.2]
[1753059540889,0.66,179.86,179.83,0.2]
[1753059541100,3.50644413,179.84,179.83,0.2]
[1753059542374,5.55679039,179.96,179.84,25.03148397]
[1753059542590,0.66,179.96,179.87,26.0]
[1753059542901,3.50644413,179.94,179.88,46.06926173]
[1753059543076,3.50644413,179.94,179.89,4.77233939]
[1753059543276,3.50644413,179.94,179.9,0.71]
[1753059543493,3.50644413,179.93,179.91,0.71]
[1753059543693,3.50644413,179.95,179.92,40.35580257]
[1753059543896,3.50644413,179.95,179.93,0.71]
[1753059544233,3.50644413,179.96,179.94,0.71]
[1753059545097,6.35241043,180.02,179.94,0.71]
[1753059545098,3.50644413,179.97,179.95,1.26570991]
[1753059545288,3.50644413,179.98,179.96,40.51]
[1753059545492,3.50644413,179.97,179.96,39.8]
[1753059554404,0.66,180.0,179.96,39.8]
[1753059554721,3.50644413,179.98,179.97,0.71]
[1753059554915,3.50644413,180.0,179.97,0.71]
[1753059555230,0.72,180.02,179.98,0.71]
[1753059555533,3.50644413,179.99,179.97,27.35389354]
[1753059555700,0.72,180.02,179.98,39.78]
[1753059556718,3.50644413,179.99,179.98,39.78]
[1753059558339,3.50644413,179.99,179.98,40.49]
[1753059558940,3.50644413,179.99,179.98,39.78]
[1753059559426,3.50644413,179.99,179.98,40.49]
[1753059560419,3.56644413,179.99,179.98,40.49]
[1753059560929,0.06,179.99,179.98,40.49]
[1753059561640,3.56644413,179.99,179.98,67.84389354]
[1753059561943,0.06,179.99,179.98,67.84389354]
[1753059565225,0.06,179.99,179.98,75.49678373]
[1753059565417,3.50644413,180.01,179.99,27.29389354]
[1753059565612,0.06,180.02,180.0,40.31555555]
[1753059565816,0.06,180.02,180.0,41.02555555]
[1753059566050,0.06,180.02,180.01,0.71]
[1753059566241,0.06,180.02,180.01,31.51033767]
[1753059566549,0.06,180.02,180.01,48.29502164]
[1753059566739,0.06,180.02,180.01,44.78857751]
[1753059567419,0.06,180.02,180.01,53.1745142]
[1753059568721,0.06,180.02,180.01,53.73003889]
[1753059572334,0.06,180.06,180.03,27.23389354]
[1753059572543,0.06,180.06,180.04,40.29543212]
[1753059572849,0.06,180.06,180.04,40.97543212]
[1753059573149,0.06,180.06,180.05,22.4878281]
[1753059573526,0.06,180.06,180.05,28.04184087]
[1753059573941,0.06,180.06,180.05,176.04184087]
[1753059574122,0.06,180.06,180.05,182.37444087]
[1753059575141,0.06,180.06,180.05,178.86799674]
[1753059575347,0.06,180.06,180.05,182.37444087]
[1753059576452,0.06,180.06,180.05,178.86799674]
[1753059576659,0.06,180.06,180.05,182.37444087]
[1753059578862,0.06,180.09,180.08,53.07389354]
[1753059579075,0.06,180.09,180.08,92.81389354]
[1753059580656,0.06,180.09,180.08,93.49389354]
[1753059580957,0.06,180.09,180.08,99.04698105]
[1753059582274,0.06,180.09,180.08,115.83166502]
[1753059582634,0.06,180.09,180.08,109.59857751]
[1753059583248,0.06,180.09,180.08,110.15388626]
[1753059584039,0.06,180.09,180.08,115.70697377]
[1753059584359,0.06,180.09,180.08,110.15388626]
[1753059584763,0.06,180.09,180.08,83.07999272]
[1753059585458,0.06,180.09,180.08,88.63308023]
[1753059586038,0.06,180.09,180.08,48.89308023]
[1753059586271,0.06,180.09,180.08,65.72]
[1753059589658,0.06,180.09,180.08,92.79952436]
[1753059591370,0.06,180.09,180.08,83.05999272]
[1753059591648,0.06,180.09,180.08,88.61308023]
[1753059592255,0.06,180.09,180.08,89.29308023]
[1753059592983,0.06,180.09,180.08,92.79952436]
[1753059596496,0.06,180.1,180.09,50.13468397]
[1753059596710,0.06,180.1,180.09,54.3211281]
[1753059597188,0.06,180.1,180.09,59.87390726]
[1753059597584,0.06,180.1,180.09,66.95268137]
[1753059598465,0.06,180.13,180.12,50.48398397]
[1753059598669,0.06,180.13,180.12,94.24561353]
[1753059598870,0.06,180.13,180.12,94.92561353]
[1753059599473,0.06,180.13,180.12,100.47746784]
[1753059600668,0.06,180.13,180.12,107.55624195]
[1753059601178,0.1,180.16,180.15,16.78468397]
[1753059601377,0.06,180.17,180.16,22.33530563]
[1753059601586,1e-08,180.17,180.16,66.99052387]
[1753059602094,1e-08,180.17,180.16,88.10452369]
[1753059602404,0.66,180.26,180.2,42.78468397]
[1753059602580,0.66,180.26,180.23,3.50644413]
[1753059602785,0.66,180.26,180.24,40.2348158]
[1753059602973,0.66,180.28,180.24,40.2348158]
[1753059603177,0.66,180.27,180.24,40.2348158]
[1753059604275,2.174,180.32,180.24,40.2348158]
[1753059604276,4.16644413,180.26,180.24,0.5548158]
[1753059604584,3.50644413,180.25,180.24,26.0]
[1753059604892,0.66,180.25,180.24,65.68]
[1753059605195,4.16644413,180.25,180.16,18.21331824]
[1753059605491,0.66,180.24,180.17,39.66]
[1753059605687,3.50644413,180.19,180.18,39.66]
[1753059605891,0.66,180.22,180.18,39.66]
[1753059606394,0.66,180.21,180.18,39.66]
[1753059606595,4.16644413,180.21,180.18,39.66]
[1753059606889,9.79115476,180.27,180.2,26.0]
[1753059606890,4.24384413,180.27,180.2,26.0]
[1753059607067,16.78468397,180.31,180.21,43.16644413]
[1753059607068,0.66,180.26,180.21,43.16644413]
[1753059607269,0.66,180.26,180.21,44.44135229]
[1753059607465,0.66,180.25,180.22,5.54877372]
[1753059607701,0.66,180.25,180.23,39.66]
[1753059608077,0.66,180.27,180.23,39.66]
[1753059608273,4.16644413,180.27,180.23,39.66]
[1753059608797,0.66,180.26,180.23,39.66]
[1753059608980,0.66,180.25,180.23,39.66]
[1753059609381,4.16644413,180.25,180.23,39.66]
[1753059609905,0.66,180.25,180.23,39.66]
[1753059610302,3.50644413,180.26,180.23,45.20835822]
[1753059610489,0.06,180.28,180.24,0.72]
[1753059610679,3.56644413,180.28,180.25,40.38]
[1753059610998,4.16644413,180.27,180.25,39.66]
[1753059611509,4.16644413,180.26,180.25,39.66]
[1753059611894,4.16644413,180.26,180.19,16.78468397]
[1753059612108,0.66,180.25,180.2,39.66]
[1753059612277,3.50644413,180.21,180.2,39.66]
[1753059612877,3.50644413,180.22,180.2,39.66]
[1753059613594,0.06,180.28,180.2,40.38]
[1753059613595,3.50644413,180.24,180.2,40.38]
[1753059613987,3.50644413,180.24,180.2,45.92931512]
[1753059614188,3.50644413,180.23,180.2,39.66]
[1753059614399,3.50644413,180.22,180.2,45.20925285]
[1753059614605,0.06,180.28,180.21,21.56603626]
[1753059614804,0.06,180.28,180.24,3.50644413]
[1753059615004,0.06,180.28,180.27,26.0]
[1753059615208,0.06,180.28,180.27,65.64]
[1753059615390,0.06,180.28,180.27,86.6511281]
[1753059615583,0.06,180.28,180.27,83.14468397]
[1753059616180,4.22644413,180.28,180.27,65.64]
[1753059616507,4.22644413,180.28,180.27,39.64]
[1753059617779,0.72,180.28,180.27,39.64]
[1753059617982,4.22644413,180.28,180.27,39.64]
[1753059618199,0.06,180.28,180.27,39.64]
[1753059618600,3.56644413,180.28,180.27,39.64]
[1753059618804,0.06,180.28,180.27,39.64]
[1753059619027,0.06,180.28,180.27,45.1872347]
[1753059619229,0.06,180.28,180.27,62.69191867]
[1753059621105,0.06,180.28,180.27,92.1983628]
[1753059621303,0.06,180.28,180.27,88.69191867]
[1753059621619,0.06,180.28,180.27,92.1983628]
[1753059622007,0.06,180.28,180.27,70.60383028]
[1753059624135,0.06,180.28,180.27,77.68260439]
[1753059628923,0.06,180.28,180.27,56.13069278]
[1753059629129,0.06,180.28,180.27,73.27713691]
[1753059629308,0.06,180.28,180.27,77.67146103]
[1753059629515,1e-08,180.28,180.27,83.92116103]
[1753059630229,1e-08,180.28,180.27,117.19116103]
[1753059632437,1e-08,180.28,180.27,113.6847169]
[1753059632637,1e-08,180.28,180.27,117.7458845]
[1753059632940,1e-08,180.28,180.27,117.17116103]
[1753059633614,1e-08,180.28,180.27,74.0447169]
[1753059633816,1e-08,180.28,180.27,114.21944037]
[1753059634033,1e-08,180.28,180.27,71.72195817]
[1753059634341,0.72000001,180.28,180.27,39.62]
[1753059634549,0.72000001,180.28,180.27,65.62]
[1753059634839,1e-08,180.28,180.27,66.69308627]
[1753059635007,1e-08,180.28,180.27,92.69308627]
[1753059635214,1e-08,180.28,180.27,92.01308627]
[1753059635510,1e-08,180.28,180.27,88.50664214]
[1753059635715,0.72000001,180.28,180.27,26.0]
[1753059635929,0.72000001,180.28,180.27,39.62]
[1753059637019,1e-08,180.28,180.27,45.1672347]
[1753059638130,1e-08,180.28,180.27,39.62]
[1753059638721,0.72000001,180.28,180.27,39.62]
[1753059639352,1e-08,180.28,180.27,39.62]
[1753059639541,1e-08,180.28,180.27,45.1672347]
[1753059640937,1e-08,180.28,180.27,39.62]
[1753059641116,0.72000001,180.28,180.27,39.62]
[1753059641317,4.22644414,180.28,180.27,39.62]
[1753059642818,1e-08,180.28,180.27,45.1672347]
[1753059643435,1e-08,180.28,180.27,49.35367883]
[1753059644045,1e-08,180.28,180.27,66.1383628]
[1753059644371,1e-08,180.28,180.27,76.72358104]
[1753059644757,1e-08,180.28,180.27,73.21713691]
[1753059644960,1e-08,180.28,180.27,48.33191867]
[1753059645159,1e-08,180.28,180.27,71.1672347]
[1753059645365,0.72000001,180.28,180.27,65.62]
[1753059645529,0.72000001,180.28,180.27,39.62]
[1753059646440,4.22644414,180.28,180.27,39.62]
[1753059647050,4.22644414,180.28,180.25,26.0]
[1753059647269,0.72,180.27,180.26,39.62]
[1753059647427,4.22644413,180.27,180.2,5.54928734]
[1753059647746,4.22644413,180.27,180.18,9.05780055]
[1753059647747,0.72,180.26,180.22,26.0]
[1753059647936,0.72,180.26,180.23,39.62]
[1753059648943,3.50644413,180.24,180.23,39.62]
[1753059649128,3.50644413,180.24,180.17,0.03]
[1753059649129,4.22644413,180.24,180.17,0.03]
[1753059649332,3.50644413,180.19,180.17,0.03]
[1753059649537,3.50644413,180.19,180.18,39.62]
[1753059649740,0.72,180.22,180.18,39.62]
[1753059649935,4.22644413,180.22,180.18,45.17000555]
[1753059650467,0.72,180.24,180.19,20.84609785]
[1753059650656,4.22644413,180.27,180.22,3.50644413]
[1753059650948,4.22644413,180.27,180.23,40.19484658]
[1753059651527,3.50644413,180.26,180.23,40.19484658]
[1753059651759,4.22644413,180.25,180.23,39.64]
[1753059652128,4.22644413,180.25,180.23,39.67]
[1753059652327,0.72,180.24,180.23,39.67]
[1753059652634,4.22644413,180.24,180.23,39.67]
[1753059657351,9.77460214,180.24,180.17,0.03]
[1753059657544,0.72,180.23,180.18,39.64]
[1753059657732,3.50644413,180.19,180.18,39.64]
[1753059658069,4.22644413,180.19,180.18,39.64]
[1753059658232,4.22644413,180.19,180.17,0.03]
[1753059658233,13.28259767,180.19,180.17,0.03]
[1753059658568,4.22644413,180.18,180.17,0.03]
[1753059659390,6.41050018,180.18,180.17,0.03]
[1753059660358,6.41050018,180.18,180.17,0.53]
[1753059660855,6.41050018,180.18,180.17,39.67]
[1753059661057,12.10100036,180.18,180.17,39.67]
[1753059661363,17.65100591,180.18,180.17,0.03]
[1753059661658,0.7374,180.17,180.15,0.03]
[1753059661963,11.24112184,180.16,180.13,0.03]
[1753059662140,5.69050018,180.14,180.13,0.03]
[1753059662337,5.69050018,180.14,180.1,39.64]
[1753059662541,5.55062166,180.16,180.09,0.03]
[1753059662542,5.69050018,180.11,180.09,0.03]
[1753059662778,5.69050018,180.1,180.09,0.03]
[1753059663076,6.37050018,180.1,180.09,0.03]
[1753059663646,6.37050018,180.1,180.06,39.67]
[1753059663647,12.06100036,180.1,180.06,39.67]
[1753059663876,2.174,180.12,180.06,39.67]
[1753059663877,5.69050018,180.07,180.06,39.67]
[1753059664048,6.37050018,180.07,180.06,39.67]
[1753059664248,0.68,180.07,180.06,39.67]
[1753059664512,13.87655417,180.16,180.06,39.67]
[1753059664781,5.69050018,180.11,180.07,26.0]
[1753059664945,5.69050018,180.11,180.07,27.21533959]
[1753059665147,5.69050018,180.11,180.08,0.66]
[1753059665460,5.69050018,180.1,180.09,39.64]
[1753059666248,0.68,180.1,180.09,39.64]
[1753059666472,6.37050018,180.1,180.09,39.64]
[1753059666663,5.69050018,180.1,180.09,39.64]
[1753059667577,5.69050018,180.1,180.09,40.14]
[1753059667757,0.68,180.13,180.09,40.14]
[1753059667957,5.69050018,180.12,180.09,40.8]
[1753059668191,5.69050018,180.16,180.11,26.0]
[1753059668351,5.69050018,180.15,180.12,40.21518543]
[1753059668552,5.69050018,180.13,180.12,39.66]
[1753059668753,6.37050018,180.13,180.12,39.66]
[1753059669550,6.37050018,180.13,180.09,88.0]
[1753059669761,5.69050018,180.18,180.1,39.66]
[1753059669958,0.68,180.12,180.1,39.66]
[1753059670182,0.68,180.12,180.09,40.16]
[1753059670889,5.69050018,180.1,180.09,40.16]
[1753059671260,6.37050018,180.1,180.09,40.16]
[1753059671463,5.69050018,180.1,180.09,40.16]
[1753059672858,5.69050018,180.12,180.09,46.37277916]
[1753059673289,5.69050018,180.12,180.09,46.40277916]
[1753059673491,5.69050018,180.11,180.09,40.19]
[1753059673664,5.69050018,180.1,180.09,40.19]
[1753059674280,0.68,180.1,180.09,40.19]
[1753059674572,6.37050018,180.1,180.09,0.53]
[1753059675494,6.37050018,180.1,180.09,0.03]
[1753059676462,0.68,180.1,180.09,0.03]
[1753059676667,6.37050018,180.1,180.09,0.03]
[1753059677067,11.92297102,180.1,180.09,0.03]
[1753059678018,0.68,180.1,180.09,0.03]
[1753059678214,5.69050018,180.1,180.09,0.03]
[1753059678874,6.37050018,180.1,180.09,0.03]
[1753059679191,6.37050018,180.1,180.09,0.53]
[1753059683081,5.69050018,180.1,180.09,0.53]
[1753059684178,5.69050018,180.11,180.09,1.19]
[1753059684408,0.06,180.13,180.1,40.32]
[1753059684582,5.75050018,180.13,180.11,0.66]
[1753059685799,0.06,180.13,180.11,0.66]
[1753059685993,0.06,180.13,180.12,0.66]
[1753059686197,0.06,180.13,180.12,94.26703974]
[1753059686705,0.06,180.13,180.12,142.74222389]
[1753059686897,0.06,180.13,180.12,142.18703846]
[1753059687492,0.06,180.17,180.16,26.0]
[1753059687689,0.06,180.17,180.16,153.1]
[1753059687895,0.06,180.17,180.16,153.76]
[1753059688101,0.06,180.17,180.16,176.09530563]
[1753059688309,0.06,180.17,180.16,189.76990581]
[1753059688805,0.06,180.17,180.16,184.07940563]
[1753059689188,0.06,180.17,180.16,189.76990581]
[1753059690607,0.06,180.17,180.16,332.07940563]
[1753059690912,0.06,180.17,180.16,337.76990581]
[1753059693315,0.06,180.21,180.2,26.0]
[1753059693488,5.69050018,180.24,180.21,87.38]
[1753059693812,5.69050018,180.23,180.22,39.64]
[1753059693986,5.69050018,180.24,180.22,39.64]
[1753059694187,6.37050018,180.23,180.22,39.64]
[1753059695021,6.37050018,180.23,180.21,87.38]
[1753059695305,0.68,180.22,180.21,87.38]
[1753059695503,0.68,180.22,180.21,127.02]
[1753059695714,0.68,180.22,180.17,87.38]
[1753059695882,0.68,180.21,180.18,39.64]
[1753059696087,0.68,180.21,180.18,127.02]
[1753059696513,5.69050018,180.19,180.18,127.02]
[1753059696693,5.69050018,180.2,180.18,133.27997009]
[1753059697121,5.69050018,180.2,180.18,127.02]
[1753059697494,0.68,180.23,180.18,132.57000473]
[1753059697793,5.69050018,180.21,180.18,133.28000473]
[1753059698798,5.69050018,180.2,180.18,127.02]
[1753059699009,5.69050018,180.19,180.18,127.02]
[1753059699212,6.37050018,180.19,180.18,127.02]
[1753059700095,6.37050018,180.19,180.18,39.64]
[1753059700539,6.37050018,180.19,180.12,13.50010124]
[1753059700540,6.37050018,180.19,180.13,87.38]
[1753059700821,19.69608397,180.25,180.13,87.38]
[1753059700822,0.68,180.18,180.14,39.64]
[1753059701004,0.68,180.17,180.14,39.64]
[1753059701814,5.69050018,180.15,180.14,39.64]
[1753059702015,6.37050018,180.15,180.14,127.02]
[1753059704105,6.37050018,180.15,180.09,113.41]
[1753059704297,0.68,180.14,180.1,39.64]
[1753059705520,5.69050018,180.11,180.1,39.64]
[1753059705696,0.68,180.14,180.1,39.64]
[1753059705899,5.69050018,180.12,180.1,40.35]
[1753059706207,0.68,180.17,180.11,0.71]
[1753059706208,5.69050018,180.13,180.11,0.71]
[1753059706412,5.69050018,180.13,180.12,39.64]
[1753059707230,6.37050018,180.13,180.12,39.64]
[1753059707412,6.37050018,180.13,180.12,40.14]
[1753059707805,6.37050018,180.13,180.12,39.64]
[1753059708424,6.37050018,180.13,180.11,39.64]
[1753059708619,6.37050018,180.12,180.11,39.64]
[1753059708822,6.37050018,180.12,180.09,87.41]
[1753059709143,5.69050018,180.1,180.09,0.03]
[1753059709324,5.69050018,180.1,180.09,39.67]
[1753059710159,6.37050018,180.1,180.09,39.67]
[1753059710448,5.69050018,180.1,180.09,39.67]
[1753059711219,0.68,180.14,180.09,39.67]
[1753059711428,5.69050018,180.12,180.1,0.71]
[1753059711659,0.68,180.15,180.11,39.66]
[1753059712934,5.69050018,180.12,180.11,39.66]
[1753059713139,6.37050018,180.12,180.11,39.66]
[1753059714946,6.37050018,180.12,180.11,127.04]
[1753059716132,5.69050018,180.12,180.11,127.04]
[1753059716436,5.69050018,180.12,180.11,127.07]
[1753059716748,6.37050018,180.12,180.11,127.07]
[1753059717336,0.68,180.15,180.11,127.07]
[1753059717521,31.69050018,180.18,180.11,127.07]
[1753059717522,5.69050018,180.12,180.11,127.07]
[1753059719246,6.37050018,180.12,180.11,127.07]
[1753059720628,0.68,180.18,180.11,127.78]
[1753059720830,5.69050018,180.12,180.11,87.41]
[1753059721023,5.69050018,180.12,180.11,127.07]
[1753059721524,11.90235449,180.12,180.11,0.03]
[1753059721726,11.90235449,180.12,180.09,0.03]
[1753059721925,5.69050018,180.1,180.09,0.03]
[1753059722122,5.69050018,180.1,180.07,0.03]
[1753059722345,5.69050018,180.18,180.07,113.41]
[1753059722559,5.69050018,180.11,180.08,40.38]
[1753059722729,5.69050018,180.11,180.09,0.72]
[1753059722930,5.69050018,180.11,180.08,127.04]
[1753059722931,5.69050018,180.1,180.08,87.38]
[1753059723139,3.49372703,180.1,180.09,39.66]
[1753059724151,3.49372703,180.11,180.09,39.66]
[1753059724352,3.49372703,180.11,180.09,40.38]
[1753059724526,3.49372703,180.11,180.1,0.72]
[1753059725347,3.49372703,180.11,180.09,39.66]
[1753059725854,3.49372703,180.1,180.09,39.66]
[1753059726161,3.49372703,180.1,180.09,127.04]
[1753059726457,3.49372703,180.1,180.09,127.76]
[1753059726760,3.49372703,180.12,180.09,128.26]
[1753059726940,3.49372703,180.11,180.09,128.26]
[1753059727137,0.66,180.17,180.1,0.72]
[1753059727341,3.49372703,180.13,180.11,39.66]
[1753059727559,3.49372703,180.13,180.11,127.04]
[1753059728542,3.49372703,180.12,180.11,127.04]